bitfinex-derivatives/quotes_SOLF0:USTF0_20241208
["timestamp","ask_amount","ask_price","bid_price","bid_amount"]
[1733688976762,1.86,236.11,235.96,1.86]
[1733688976958,1.86,236.11,235.97,1.36156838]
[1733688977264,2.1175,236.02,235.96,1.86]
[1733688977657,2.1177,236.0,235.9,2.7365]
[1733688977855,1.86,236.06,235.91,6.45927126]
[1733688978057,1.86,236.06,235.92,3.53960475]
[1733688978257,1.86,236.06,235.93,3.53960475]
[1733688978456,1.86,236.06,235.94,1.36121815]
[1733688978655,1.86,236.06,235.91,1.86]
[1733688978868,1.86,236.06,235.92,3.53833213]
[1733688979165,4.0693,236.12,235.93,3.53833213]
[1733688979359,1.86,236.11,235.94,1.36072851]
[1733688979554,1.86,236.11,235.95,1.36072851]
[1733688979762,2.1173,236.04,235.91,1.86]
[1733688979958,2.1173,236.04,235.92,3.53736506]
[1733688980159,2.1173,236.04,235.93,3.53736506]
[1733688980464,2.1173,236.04,235.94,3.53736506]
[1733688980665,2.1172,236.05,235.95,1.36035682]
[1733688980865,2.1172,236.05,235.96,3.22035682]
[1733688981162,2.1172,236.05,235.97,1.36035682]
[1733688981360,1.86,236.08,235.98,1.35972592]
[1733688981567,1.86,236.08,235.99,1.35947395]
[1733688981767,4.0693,236.12,236.0,1.35947588]
[1733688981768,2.1167,236.11,236.0,1.35947588]
[1733688981969,2.1167,236.11,236.01,3.21947588]
[1733688982267,2.1167,236.11,236.02,3.21898165]
[1733688982468,4.8139,236.12,236.03,1.35898165]
[1733688982662,4.8139,236.12,236.02,1.86]
[1733688982867,3.4565,236.12,236.03,1.35914115]
[1733688983067,3.4565,236.12,236.02,1.86]
[1733688983266,3.4565,236.12,236.03,1.35916806]
[1733688983569,2.1167,236.11,236.02,1.86]
[1733688983764,2.1167,236.11,236.03,1.35938605]
[1733688983968,1.3399,236.12,236.02,1.86]
[1733688984277,1.3399,236.12,236.03,1.35941682]
[1733688984467,1.3399,236.12,236.02,1.86]
[1733688984786,2.1168,236.09,236.02,1.86]
[1733688986369,2.1168,236.09,236.03,1.360316]
[1733688986569,2.1168,236.09,236.02,1.86]
[1733688986772,1.3399,236.12,236.03,1.36030848]
[1733688986969,1.3399,236.12,236.02,1.86]
[1733688987268,1.3399,236.12,236.03,1.36030544]
[1733688987475,2.1169,236.09,236.02,1.86]
[1733688989067,2.1169,236.08,236.02,1.86]
[1733688989274,1.3399,236.12,235.99,1.86]
[1733688989572,2.6641,236.12,236.0,1.36154947]
[1733688989765,2.6641,236.12,235.99,1.86]
[1733688989970,2.6641,236.12,236.0,1.36171777]
[1733688990170,2.6641,236.12,235.91,1.69512522]
[1733688990370,2.6641,236.12,235.92,8.15663651]
[1733688990574,2.6641,236.12,235.93,4.60151129]
[1733688990773,2.6641,236.12,235.94,4.60151129]
[1733688990977,2.6641,236.12,235.95,3.54198517]
[1733688991171,2.1174,236.04,235.96,3.54198517]
[1733688991369,2.1174,236.04,235.97,1.36213355]
[1733688991669,2.1174,236.04,235.92,1.86]
[1733688991975,2.1174,236.04,235.93,4.60342414]
[1733688992170,2.1174,236.04,235.94,4.6034204]
[1733688992375,2.1174,236.04,235.95,2.4224459]
[1733688992675,2.1174,236.04,235.96,3.5438115]
[1733688992872,1.86,236.09,235.97,5.4038115]
[1733688993074,1.86,236.09,235.98,1.36283589]
[1733688993274,1.86,236.09,235.99,1.36283589]
[1733688993574,1.86,236.09,236.0,1.36201917]
[1733688993766,1.86,236.09,236.01,1.36201917]
[1733688993971,1.86,236.09,236.02,1.36201917]
[1733688994173,2.6641,236.12,236.03,1.36201917]
[1733688994375,4.5241,236.12,235.97,1.86]
[1733688994569,4.5241,236.12,235.98,4.60065183]
[1733688994774,4.5241,236.12,235.99,4.60065183]
[1733688994975,2.1168,236.09,236.0,3.54126176]
[1733688995171,2.1168,236.09,236.01,3.54126176]
[1733688995477,2.1168,236.09,236.02,3.54126176]
[1733688995677,2.6641,236.12,236.03,1.36185531]
[1733688995870,1.3399,236.12,236.04,1.36185531]
[1733688996075,1.3399,236.12,236.05,3.54261597]
[1733688996277,1.3399,236.12,236.06,1.36185531]
[1733688996478,3.4565,236.12,236.03,1.86]
[1733688996679,3.4565,236.12,236.04,3.54428136]
[1733688996887,3.4565,236.12,236.05,3.54428136]
[1733688997177,3.4565,236.12,236.06,1.36301659]
[1733688997373,3.4565,236.12,236.03,1.86]
[1733688997579,3.4565,236.12,236.04,3.54441168]
[1733688997779,3.4565,236.12,236.05,1.36306671]
[1733688997979,3.4565,236.12,236.06,1.36306671]
[1733688998180,3.4565,236.12,236.07,1.3632104]
[1733688998473,3.4565,236.12,236.03,1.86]
[1733688998678,3.4565,236.12,236.04,3.54452214]
[1733688998874,3.4565,236.12,236.05,1.36310918]
[1733688999081,3.4565,236.12,236.06,1.36310918]
[1733688999278,3.4565,236.12,236.07,1.36310918]
[1733688999477,3.4565,236.12,236.03,1.86]
[1733688999675,3.4565,236.12,236.04,3.5437174]
[1733688999874,3.4565,236.12,236.05,1.36279969]
[1733689000182,3.4565,236.12,236.06,1.36279969]
[1733689000372,3.4565,236.12,236.03,1.86]
[1733689000681,3.4565,236.12,236.04,1.36282708]
[1733689000884,3.4565,236.12,236.03,1.86]
[1733689000885,3.4565,236.12,236.05,1.36282708]
[1733689001089,3.4565,236.12,236.03,1.86]
[1733689001279,3.4565,236.12,236.04,1.36283737]
[1733689001588,3.4565,236.12,236.05,1.36283307]
[1733689001786,3.4565,236.12,236.03,1.86]
[1733689001981,3.4565,236.12,236.04,1.36275018]
[1733689002182,3.4565,236.12,236.03,1.86]
[1733689002485,3.4565,236.12,236.04,1.36274217]
[1733689002680,3.4565,236.12,236.05,1.36274217]
[1733689002987,3.4565,236.12,236.03,1.86]
[1733689003283,3.4565,236.12,236.04,1.36281698]
[1733689003483,3.4565,236.12,236.05,1.36281698]
[1733689003685,2.1165,236.14,236.03,1.86]
[1733689003979,2.1165,236.14,236.04,1.36279392]
[1733689004186,2.1165,236.14,236.05,1.36279392]
[1733689004382,2.1165,236.14,236.06,1.36279392]
[1733689004584,2.1165,236.14,236.03,1.86]
[1733689004889,2.1165,236.14,236.04,1.362658]
[1733689005185,2.1165,236.14,236.05,1.362658]
[1733689005384,2.1165,236.14,236.06,1.362658]
[1733689005581,2.1165,236.14,236.03,1.86]
[1733689005790,2.1165,236.14,236.04,1.36263753]
[1733689006080,2.1165,236.14,236.05,1.36263753]
[1733689006284,2.1165,236.14,236.06,1.36263753]
[1733689006478,2.1165,236.14,236.03,1.86]
[1733689006684,2.1165,236.14,236.04,3.5433855]
[1733689006885,2.1165,236.14,236.05,1.36267206]
[1733689007082,2.1165,236.14,236.06,1.36267206]
[1733689007283,2.1165,236.14,236.03,1.86]
[1733689007485,2.1165,236.14,236.04,1.36273709]
[1733689007692,2.1163,236.16,236.05,3.54358396]
[1733689007888,1.86,236.2,236.06,1.36273709]
[1733689008093,0.41078,236.21,236.07,1.36273709]
[1733689008290,2.27078,236.21,236.08,3.22273709]
[1733689008590,2.27078,236.21,236.09,1.36273709]
[1733689008896,2.1161,236.17,236.1,1.36273709]
[1733689009085,2.1161,236.17,236.08,1.86]
[1733689009488,2.1161,236.17,236.09,1.36199308]
[1733689009790,2.1161,236.17,236.08,1.86]
[1733689009791,2.1161,236.17,236.1,1.36199308]
[1733689010086,2.1161,236.17,236.08,1.86]
[1733689010286,2.1163,236.15,236.09,1.36186472]
[1733689010485,2.27078,236.21,236.07,1.86]
[1733689010689,2.27078,236.21,236.05,1.86]
[1733689010896,2.1167,236.12,236.06,1.36231623]
[1733689011192,2.1167,236.12,236.07,1.36231623]
[1733689011395,2.1167,236.11,236.05,1.86]
[1733689011586,1.86,236.16,236.06,1.3630288]
[1733689011796,1.86,236.16,236.05,1.86]
[1733689011989,1.86,236.16,236.06,1.36331862]
[1733689012191,1.86,236.16,236.05,1.86]
[1733689013397,2.1167,236.11,236.05,1.86]
[1733689015101,2.1167,236.11,236.03,1.86]
[1733689015400,2.1167,236.1,236.04,1.36450127]
[1733689015601,2.1167,236.1,236.03,1.86]
[1733689015799,2.1167,236.1,236.04,1.36500587]
[1733689016098,2.1167,236.1,236.03,1.86]
[1733689016298,2.1167,236.1,236.04,1.36495961]
[1733689016492,2.1167,236.1,236.03,1.86]
[1733689016694,2.1167,236.1,236.04,1.36482805]
[1733689016894,2.1167,236.1,236.03,1.86]
[1733689017201,2.1167,236.1,236.04,1.36479389]
[1733689017397,2.1167,236.1,236.03,1.86]
[1733689017592,2.1167,236.1,236.04,1.36480818]
[1733689017800,2.1169,236.08,236.01,1.86]
[1733689018001,1.3264,236.15,236.02,1.36499608]
[1733689018301,1.3264,236.15,236.03,1.36499608]
[1733689018500,1.3466,236.14,236.01,1.86]
[1733689018701,1.3466,236.14,236.02,1.36490989]
[1733689018901,1.3466,236.14,236.03,1.36490989]
[1733689019103,1.3466,236.14,236.01,1.86]
[1733689019492,1.3466,236.14,236.02,1.36490609]
[1733689019699,2.117,236.08,236.02,1.36490609]
[1733689019904,2.117,236.08,236.03,1.36490609]
[1733689020204,2.117,236.08,236.01,1.86]
[1733689020506,2.1168,236.1,236.02,1.36481427]
[1733689020807,2.1168,236.1,236.01,1.86]
[1733689020808,1.3466,236.14,236.03,1.36481427]
[1733689021101,1.3466,236.14,236.04,1.36481427]
[1733689021398,2.1167,236.11,236.01,1.86]
[1733689021703,1.3466,236.14,236.02,1.36403446]
[1733689021899,1.3466,236.14,236.03,3.54692847]
[1733689021900,2.1164,236.14,236.03,3.54692847]
[1733689022104,2.1164,236.14,236.04,3.54692847]
[1733689022402,2.1164,236.14,236.05,1.36403446]
[1733689022601,2.1164,236.14,236.06,3.22403446]
[1733689022800,2.1164,236.14,236.07,1.36403446]
[1733689023002,2.1164,236.14,236.08,1.36403446]
[1733689023300,2.1164,236.14,236.06,1.86]
[1733689023301,2.1165,236.13,236.06,1.86]
[1733689023499,2.1165,236.13,236.07,1.36535067]
[1733689023696,2.1165,236.13,236.08,1.36535067]
[1733689023901,2.1165,236.13,236.06,1.86]
[1733689024106,2.1165,236.13,236.07,1.3655062]
[1733689024318,2.1165,236.13,236.08,1.3655062]
[1733689024606,2.1165,236.13,236.06,1.86]
[1733689025000,2.1165,236.13,236.07,1.36586777]
[1733689025199,2.1165,236.13,236.08,1.36586777]
[1733689025397,2.1165,236.13,236.06,1.86]
[1733689025608,2.1165,236.13,236.07,1.36617523]
[1733689025807,2.1165,236.13,236.08,1.36617523]
[1733689026102,2.1165,236.13,236.06,1.86]
[1733689026298,2.1165,236.13,236.07,1.36650793]
[1733689026502,2.1165,236.13,236.08,1.36650793]
[1733689026709,2.1165,236.13,236.06,1.86]
[1733689026908,2.1165,236.13,236.07,1.36654743]
[1733689027102,2.1165,236.13,236.08,1.36654743]
[1733689027410,2.1165,236.13,236.09,1.36654743]
[1733689027611,2.1165,236.13,236.06,1.86]
[1733689027807,2.1165,236.13,236.07,3.55296035]
[1733689028000,2.1165,236.13,236.08,1.36635409]
[1733689028202,2.1165,236.13,236.06,1.86]
[1733689028405,2.1165,236.13,236.07,1.36624784]
[1733689028610,2.1165,236.13,236.08,2.18643512]
[1733689028810,2.1165,236.13,236.09,1.36624784]
[1733689029002,2.1165,236.13,236.1,1.36624784]
[1733689029201,2.1165,236.13,236.06,1.86]
[1733689029511,2.1165,236.13,236.07,3.55107912]
[1733689029713,2.1165,236.13,236.08,3.55107912]
[1733689030011,2.1165,236.13,236.06,1.86]
[1733689030202,2.1165,236.13,236.07,1.36560689]
[1733689030404,2.1165,236.13,236.08,1.36560689]
[1733689030610,2.1165,236.13,236.06,1.86]
[1733689030909,2.1165,236.13,236.07,1.3655794]
[1733689031111,2.1165,236.13,236.08,1.3655794]
[1733689031313,2.1165,236.13,236.06,1.86]
[1733689031509,2.1165,236.13,236.07,1.36560258]
[1733689031704,2.1165,236.13,236.06,1.86]
[1733689031913,2.1165,236.13,236.07,1.36561704]
[1733689032212,2.1165,236.13,236.08,1.36561704]
[1733689032512,2.1165,236.13,236.06,1.86]
[1733689032711,2.1165,236.13,236.07,1.36537515]
[1733689032911,2.1165,236.13,236.08,1.36537515]
[1733689033211,2.1165,236.13,236.06,1.86]
[1733689033410,2.1165,236.13,236.07,1.3652751]
[1733689033606,2.1165,236.13,236.08,1.3652751]
[1733689033815,2.1165,236.13,236.06,1.86]
[1733689034116,2.1165,236.13,236.07,1.36523548]
[1733689034312,2.1165,236.13,236.08,1.36523548]
[1733689034508,2.1164,236.14,236.06,1.86]
[1733689034709,2.1164,236.14,236.07,1.36516734]
[1733689035017,2.1164,236.14,236.08,1.36516734]
[1733689035324,2.1164,236.14,236.06,1.86]
[1733689035325,2.1163,236.15,236.09,1.36506561]
[1733689035619,1.86,236.16,236.05,1.86]
[1733689035814,1.86,236.16,236.06,1.3656564]
[1733689036022,1.86,236.16,236.07,1.3656564]
[1733689036217,1.86,236.16,236.03,1.86]
[1733689036410,1.2761,236.15,236.04,3.55271483]
[1733689036616,1.2761,236.15,236.05,1.3662597]
[1733689036617,2.1168,236.1,236.05,1.3662597]
[1733689036817,2.1168,236.1,236.03,1.86]
[1733689037013,1.2761,236.15,236.04,3.55405516]
[1733689037214,2.117,236.07,236.05,1.36677522]
[1733689037418,2.117,236.07,236.03,1.86]
[1733689037619,2.117,236.07,236.04,1.36760477]
[1733689037918,2.1169,236.09,236.05,1.36760477]
[1733689038116,2.1169,236.09,236.03,1.86]
[1733689038317,2.1169,236.09,236.04,1.36821383]
[1733689038517,2.1169,236.09,236.05,1.36821383]
[1733689038717,2.1169,236.09,236.06,1.36821383]
[1733689039018,1.86,236.11,236.03,1.86]
[1733689039019,2.1167,236.11,236.03,1.86]
[1733689039218,2.1167,236.11,236.04,3.55709125]
[1733689039424,2.1167,236.11,236.05,1.36794274]
[1733689039723,2.1167,236.11,236.06,1.36794274]
[1733689039917,2.1167,236.11,236.03,1.86]
[1733689040118,3.1361,236.15,236.04,3.55713585]
[1733689040315,2.1166,236.12,236.05,3.55713585]
[1733689040514,2.1166,236.12,236.06,3.55713585]
[1733689040712,2.1166,236.12,236.07,1.36795992]
[1733689041011,2.1166,236.12,236.03,1.86]
[1733689041012,2.1166,236.12,236.08,1.36795992]
[1733689041211,2.1166,236.12,236.09,1.36795992]
[1733689041414,2.1166,236.12,236.03,1.86]
[1733689041618,2.1166,236.12,236.04,4.61538238]
[1733689041815,2.1166,236.12,236.05,4.61538228]
[1733689042019,2.1166,236.12,236.06,3.55619496]
[1733689042418,2.1166,236.12,236.07,3.55619496]
[1733689042719,2.1166,236.12,236.03,1.86]
[1733689042720,2.1166,236.12,236.08,1.36759806]
[1733689043022,2.1166,236.12,236.09,1.36759806]
[1733689043319,2.1165,236.13,236.03,1.86]
[1733689043514,2.1165,236.13,236.04,4.61531483]
[1733689043712,2.1165,236.13,236.05,4.61531483]
[1733689043911,2.1164,236.14,236.06,3.55613867]
[1733689044121,2.1164,236.14,236.07,3.55613867]
[1733689044312,2.1164,236.14,236.08,5.41613867]
[1733689044619,2.1164,236.14,236.09,1.36757641]
[1733689045015,2.1164,236.14,236.08,1.86]
[1733689045016,2.1164,236.14,236.1,1.36757641]
[1733689045319,2.1164,236.14,236.08,1.86]
[1733689045515,2.1163,236.15,236.09,1.36754363]
[1733689045720,2.1163,236.15,236.1,1.36754363]
[1733689046020,2.1163,236.15,236.08,1.86]
[1733689046220,2.1163,236.15,236.09,1.36780342]
[1733689046418,2.1163,236.15,236.1,1.36780342]
[1733689046619,2.1163,236.15,236.08,1.86]
[1733689046817,2.1163,236.15,236.09,1.36791229]
[1733689047016,2.1163,236.15,236.1,1.36791229]
[1733689047220,2.1163,236.15,236.08,1.86]
[1733689047420,2.1163,236.15,236.09,1.36805248]
[1733689047622,2.1163,236.15,236.1,1.36805248]
[1733689047823,2.1163,236.15,236.08,1.86]
[1733689048028,2.1163,236.15,236.09,1.36796917]
[1733689048219,2.1163,236.15,236.1,1.36796917]
[1733689048417,2.1163,236.15,236.11,1.36796917]
[1733689048623,2.1163,236.15,236.08,1.86]
[1733689049026,2.1163,236.15,236.09,3.55672896]
[1733689049226,2.1163,236.15,236.1,1.36780341]
[1733689049522,2.1163,236.15,236.11,1.36780341]
[1733689049723,2.1163,236.15,236.08,1.86]
[1733689049922,2.1163,236.15,236.09,3.55686131]
[1733689050127,2.1163,236.15,236.1,1.36785432]
[1733689050329,2.1163,236.15,236.11,1.36785432]
[1733689050528,2.1163,236.15,236.08,1.86]
[1733689050824,2.1163,236.15,236.09,3.55698978]
[1733689051125,2.1163,236.15,236.08,1.86]
[1733689051126,2.1163,236.15,236.1,1.36790372]
[1733689051318,2.1163,236.15,236.11,1.36790372]
[1733689051527,2.1163,236.15,236.08,1.86]
[1733689051719,2.1163,236.15,236.09,3.5572086]
[1733689051926,2.1163,236.15,236.1,1.36798787]
[1733689052125,2.1163,236.15,236.08,1.86]
[1733689052327,2.1163,236.15,236.09,1.36798085]
[1733689052526,2.1163,236.15,236.08,1.86]
[1733689052721,2.1163,236.15,236.09,1.36800127]
[1733689053027,2.1162,236.17,236.1,1.36800127]
[1733689053328,2.1162,236.17,236.11,1.36800127]
[1733689053527,2.1162,236.17,236.08,1.86]
[1733689053729,2.1162,236.17,236.09,3.55589968]
[1733689053931,2.1162,236.17,236.1,1.36748449]
[1733689054127,2.1162,236.17,236.11,1.36748449]
[1733689054321,2.1162,236.17,236.08,1.86]
[1733689054523,2.1162,236.17,236.09,3.55551288]
[1733689054729,2.1162,236.17,236.1,1.36733574]
[1733689055028,2.1162,236.17,236.11,1.36733574]
[1733689055228,2.1162,236.16,236.08,1.86]
[1733689055437,2.1162,236.16,236.09,3.55500283]
[1733689055726,2.1162,236.16,236.1,1.36713959]
[1733689055931,2.1162,236.16,236.11,1.36713959]
[1733689056124,2.1162,236.16,236.08,1.86]
[1733689056324,2.1162,236.16,236.09,3.55560232]
[1733689056531,2.1162,236.16,236.1,1.36737014]
[1733689056730,2.1162,236.16,236.08,1.86]
[1733689056731,2.1162,236.16,236.11,1.36737014]
[1733689057032,2.1162,236.16,236.08,1.86]
[1733689057230,2.1162,236.16,236.09,3.5553107]
[1733689057431,2.1162,236.16,236.1,1.36725798]
[1733689057630,2.1162,236.16,236.11,1.36725798]
[1733689057832,2.1162,236.16,236.08,1.86]
[1733689058034,2.1162,236.16,236.09,3.55501517]
[1733689058232,2.1162,236.16,236.1,1.36714433]
[1733689058534,3.1671,236.2,236.11,1.36714433]
[1733689058535,2.1161,236.18,236.11,1.36714433]
[1733689058727,2.1161,236.18,236.12,1.36712955]
[1733689058931,2.1161,236.18,236.08,1.86]
[1733689059232,2.1161,236.18,236.09,3.55461739]
[1733689059431,2.1161,236.18,236.1,3.55461739]
[1733689059631,2.1161,236.18,236.11,1.36699135]
[1733689059827,2.1161,236.18,236.12,1.36699135]
[1733689060031,2.1161,236.18,236.13,1.36715722]
[1733689060234,2.1161,236.18,236.14,1.36715722]
[1733689060430,2.1161,236.18,236.08,1.86]
[1733689060735,2.1161,236.18,236.09,4.61325068]
[1733689060937,2.1161,236.18,236.08,1.86]
[1733689060938,2.1161,236.18,236.1,4.61325068]
[1733689061235,2.1161,236.18,236.11,3.55434959]
[1733689061435,2.1161,236.18,236.12,3.55434959]
[1733689061636,2.1161,236.18,236.13,1.36688837]
[1733689061832,2.1161,236.18,236.14,1.36688837]
[1733689062033,2.1161,236.18,236.08,1.86]
[1733689062226,2.1161,236.18,236.09,3.56061457]
[1733689062431,2.1161,236.18,236.1,4.61951149]
[1733689062730,2.1161,236.18,236.11,3.56061457]
[1733689062932,2.1161,236.18,236.12,1.36929815]
[1733689063135,2.1161,236.18,236.13,1.36929815]
[1733689063336,2.1161,236.18,236.14,1.36929815]
[1733689063538,2.1161,236.18,236.08,1.86]
[1733689063738,1.3757,236.26,236.09,4.61936001]
[1733689063937,2.1158,236.21,236.1,4.61936001]
[1733689064139,2.1158,236.21,236.08,1.86]
[1733689064140,2.1158,236.21,236.11,5.94296001]
[1733689064339,2.1158,236.21,236.12,4.61936001]
[1733689064534,2.1158,236.21,236.13,5.42042782]
[1733689064832,2.1157,236.22,236.14,3.56042782]
[1733689065032,2.1157,236.22,236.15,3.56042782]
[1733689065233,2.1157,236.22,236.16,3.56042782]
[1733689065533,2.1157,236.22,236.17,1.36922633]
[1733689065739,2.1157,236.22,236.18,1.36922633]
[1733689065936,2.1157,236.22,236.13,1.86]
[1733689066136,2.1157,236.22,236.14,3.55649679]
[1733689066330,2.1157,236.22,236.13,1.86]
[1733689066331,2.1157,236.22,236.15,3.55649679]
[1733689066532,2.1158,236.21,236.16,1.36771458]
[1733689066741,2.1158,236.21,236.17,1.36771458]
[1733689067034,2.1158,236.21,236.13,1.86]
[1733689067239,2.1158,236.21,236.14,3.55584696]
[1733689067435,2.1158,236.21,236.15,1.36746468]
[1733689067739,2.1158,236.21,236.16,1.36746468]
[1733689068039,2.1158,236.21,236.13,1.86]
[1733689068241,2.1158,236.21,236.14,3.5552592]
[1733689068430,2.1158,236.21,236.15,1.36723865]
[1733689068738,2.1158,236.21,236.16,1.36723865]
[1733689069035,2.1158,236.21,236.13,1.86]
[1733689069231,2.1158,236.21,236.14,3.55452354]
[1733689069434,2.1158,236.21,236.15,1.36695574]
[1733689069741,2.1158,236.21,236.16,1.36695574]
[1733689070039,2.1158,236.21,236.13,1.86]
[1733689070338,2.1158,236.21,236.14,1.36673761]
[1733689070538,2.1158,236.21,236.15,1.36673761]
[1733689070734,2.1158,236.21,236.16,1.36673761]
[1733689070935,2.1158,236.21,236.13,1.86]
[1733689071134,2.1158,236.21,236.14,1.36653437]
[1733689071339,2.1158,236.21,236.15,1.36653437]
[1733689071638,2.1158,236.21,236.13,1.86]
[1733689071843,2.1158,236.21,236.14,1.36638114]
[1733689072041,2.1158,236.21,236.15,1.36638114]
[1733689072339,2.1158,236.21,236.13,1.86]
[1733689072637,2.1158,236.21,236.14,1.36632247]
[1733689072837,2.1158,236.21,236.13,1.86]
[1733689073037,2.1158,236.21,236.14,1.3663086]
[1733689073237,2.1158,236.21,236.13,1.86]
[1733689073535,3.2357,236.26,236.14,1.3662898]
[1733689073737,3.2357,236.26,236.14,1.86]
[1733689074938,2.116,236.19,236.14,1.86]
[1733689075440,2.1159,236.2,236.14,1.86]
[1733689076046,2.1159,236.2,236.11,1.3236]
[1733689076335,2.1159,236.2,236.12,1.86]
[1733689076741,2.1159,236.2,236.13,1.36598184]
[1733689076942,2.1159,236.2,236.12,1.86]
[1733689077136,2.1159,236.2,236.13,1.36592894]
[1733689077341,2.1159,236.2,236.12,1.86]
[1733689077542,2.1159,236.2,236.13,1.36581688]
[1733689077836,2.1159,236.2,236.12,1.86]
[1733689078037,2.1159,236.2,236.13,1.36579811]
[1733689078243,2.116,236.18,236.06,4.19155624]
[1733689078440,3.2357,236.26,236.07,6.47049906]
[1733689078634,1.86,236.25,236.08,4.61049906]
[1733689078833,1.86,236.25,236.09,3.55173148]
[1733689079041,1.86,236.25,236.1,3.55173148]
[1733689079242,2.1164,236.15,236.11,1.36588197]
[1733689079539,1.86,236.2,236.08,1.86]
[1733689079735,2.1165,236.14,236.09,1.36634267]
[1733689079933,2.1165,236.14,236.08,1.86]
[1733689080333,3.1945,236.18,236.08,1.86]
[1733689080539,2.1165,236.13,236.08,1.86]
[1733689081645,3.1945,236.18,236.08,1.86]
[1733689082042,3.1945,236.18,236.0,1.2864]
[1733689082238,3.1945,236.18,236.01,10.66639808]
[1733689082445,3.1945,236.18,236.02,6.30725557]
[1733689082643,2.1164,236.14,236.03,8.80681503]
[1733689082847,2.1164,236.14,236.04,6.30725557]
[1733689083049,2.1164,236.14,236.05,4.61285994]
[1733689083248,2.1165,236.13,236.06,6.47285994]
[1733689083445,2.1165,236.13,236.07,5.41386267]
[1733689083645,2.1165,236.13,236.08,5.41386267]
[1733689083847,2.1165,236.13,236.09,1.36670158]
[1733689084046,2.1165,236.13,236.1,1.36670158]
[1733689084251,3.1945,236.18,236.07,1.86]
[1733689084443,2.1166,236.12,236.08,1.36775296]
[1733689084642,2.1166,236.12,236.09,1.36775296]
[1733689084847,2.1167,236.11,236.06,1.86]
[1733689085043,2.1167,236.11,236.07,1.36791376]
[1733689085252,1.86,236.13,236.08,1.36791376]
[1733689085551,1.86,236.12,236.0,1.86]
[1733689085847,3.2097,236.11,236.01,4.61784312]
[1733689086050,3.2558,236.1,236.02,3.55864894]
[1733689086346,2.1172,236.06,236.03,1.3685422]
[1733689086551,3.2558,236.1,236.04,1.3685422]
[1733689086754,3.2558,236.1,235.99,1.86]
[1733689087049,3.2558,236.1,236.0,4.61842551]
[1733689087451,2.117,236.08,236.01,3.5591412]
[1733689087751,2.117,236.08,235.92,1.3852]
[1733689087752,3.2558,236.1,236.02,3.5591412]
[1733689087950,3.2558,236.1,236.03,1.36873151]
[1733689088150,3.2558,236.1,235.99,1.86]
[1733689088649,3.2558,236.1,236.0,3.55878021]
[1733689088849,2.1171,236.06,236.01,3.55878021]
[1733689089047,2.1171,236.06,236.02,1.36859268]
[1733689089251,3.2558,236.1,235.99,1.86]
[1733689089447,2.1173,236.04,236.0,3.55916623]
[1733689089653,3.2558,236.1,236.01,1.36874115]
[1733689089944,1.3114,236.09,235.97,1.86]
[1733689090152,1.3114,236.09,235.98,3.55928631]
[1733689090342,1.3114,236.09,235.99,1.3687873]
[1733689090547,1.3114,236.09,235.95,51.00577492]
[1733689090848,1.3114,236.09,235.96,3.55967118]
[1733689091049,1.3114,236.09,235.97,1.36893532]
[1733689091243,2.1176,236.01,235.98,1.36893532]
[1733689091448,2.1176,236.01,235.95,1.86]
[1733689091652,2.1176,236.01,235.96,1.36835402]
[1733689091945,2.1176,236.01,235.97,1.36835402]
[1733689092148,2.1176,236.01,235.95,1.86]
[1733689092349,2.1176,236.01,235.96,1.36780637]
[1733689092550,2.1176,236.01,235.97,1.36780637]
[1733689092753,2.1176,236.01,235.95,1.86]
[1733689092942,2.1176,236.01,235.96,1.36781258]
[1733689093142,2.1176,236.01,235.97,1.36781258]
[1733689093346,1.86,236.05,235.88,2.50092745]
[1733689093347,2.1179,235.97,235.88,2.50092745]
[1733689093551,2.1179,235.97,235.87,1.3268]